Cogmind - Beta 15 --- EXPLORER MODE // 2025.06.04 @ 19:39:18 Player: tcfire Result: Destroyed by G-47 Trooper with Particle Gun Performance ------------- Evolutions (2) 1000 Regions Visited (4) 800 Robots Destroyed (26) 130 Value Destroyed (1077) 1077 Prototype IDs (4) 80 Alien Tech Used (0) 0 Bonus (213) 213 TOTAL SCORE: 3300 Bonus ------- High Alert Combat Kills 13 Entered Garrisons 200 Cogmind --------- Core Integrity 0/550 Matter 300/300 Energy 99/100 System Corruption 3% Temperature Cool (18) Movement Core (50) Location -8/Garrison Parts ------- > --- POWER (2) -------- (None) > --- PROPULSION (4) --- (None) > --- UTILITY (4) ------ (None) > --- WEAPON (2) ------- (None) > --- INVENTORY (5) ---- Medium Storage Unit Relay Coupler [NC] (35) Relay Coupler [Sentry] (29) Relay Coupler [Hunter] (26) Relay Coupler [Behemoth] (19) Peak State ------------ > --- POWER ------------ Light Nuclear Core > --- PROPULSION ------- Flight Unit Cesium-ion Thruster Cesium-ion Thruster Cesium-ion Thruster > --- UTILITY ---------- Medium Storage Unit Seismic Detector Targeting Computer System Shield > --- WEAPON ----------- Light Assault Rifle Assault Cannon > --- INVENTORY -------- Flight Unit Heat Sink Light Armor Plating Relay Coupler [NC] Relay Coupler [NC] Relay Coupler [Sentry] Relay Coupler [Hunter] Light Assault Rifle [Rating: 24] Favorites ----------- Power Light Ion Engine Engine Light Ion Engine Power Core Light Nuclear Core Propulsion Cesium-ion Thruster Leg Aluminum Leg Flight Unit Cesium-ion Thruster Utility Targeting Computer Device Seismic Detector Storage Medium Storage Unit Processor Targeting Computer Hackware System Shield Weapon Light Assault Rifle Ballistic Gun Light Assault Rifle Ballistic Cannon Assault Cannon Build | -11 -10 -9 -8 -8 ------- Run | Yrd Mat Mat Mat Gar Slots Evolved 5 | . 1 2 2 . Power 1 | . . . 1 . Propulsion 2 | . . 2 . . Utility 2 | . 1 . 1 . Weapon . | . . . . . Parts Attached 22 | 7 1 5 5 4 Power 3 | 1 . . 1 1 Engine 2 | 1 . . 1 . Core 1 | . . . . 1 Reactor . | . . . . . Propulsion 11 | 2 . 5 3 1 Treads . | . . . . . Leg 2 | 2 . . . . Wheel . | . . . . . Hover . | . . . . . Flight 9 | . . 5 3 1 Utility 5 | 2 1 . 1 1 Device 2 | . 1 . 1 . Storage 1 | 1 . . . . Processor 1 | 1 . . . . Hackware 1 | . . . . 1 Protection . | . . . . . Artifact . | . . . . . Weapon 3 | 2 . . . 1 Energy Gun . | . . . . . Energy Cannon . | . . . . . Ballistic Gun 2 | 2 . . . . Ballistic Cannon 1 | . . . . 1 Launcher . | . . . . . Special Weapon . | . . . . . Impact Weapon . | . . . . . Slashing Weapon . | . . . . . Piercing Weapon . | . . . . . Special Melee Weapon . | . . . . . Unidentified Prototypes . | . . . . . Parts Lost 12 | . . . . 12 Power 2 | . . . . 2 Propulsion 7 | . . . . 7 Utility 3 | . . . . 3 Weapon . | . . . . . Highest Loss Streak 6 | . . . . 6 To Critical Strikes . | . . . . . Average Backups 5 | 1 3 3 2 7 Power . | . 1 1 . . Propulsion 1 | . 2 2 2 1 Utility 2 | . . . . 5 Weapon . | . . . . . Tool/Special . | . . . . . Unused Backups 8 | . . . . 8 Power . | . . . . . Propulsion . | . . . . . Utility 8 | . . . . 8 Weapon . | . . . . . Tool/Special . | . . . . . Average Slot Usage (%) 84 | . 87 97 99 77 Engine 7 | . 12 10 16 4 Core 2 | . . . . 4 Leg 5 | . 25 1 . . Flight 23 | . . 36 33 28 Device 8 | . . 10 15 10 Storage 8 | . 12 10 8 7 Processor 8 | . 12 10 8 7 Hackware 2 | . . . . 4 Ballistic Gun 12 | . 25 20 16 6 Ballistic Cannon 1 | . . . . 3 Peak Build Rating 24 | 7 8 13 20 24 Average Rating 14 | 4 7 11 19 18 On Entrance 9 | . 7 8 13 20 Naked Turns 14 | . . . . 14 Heaviest Build 22 | 15 16 16 20 22 Greatest Support 20 | 20 20 17 20 20 Greatest Overweight (x) 1 | 1 . . . 1 Average Overweight (x) . | . . . . . Largest Inventory Capacity 10 | 10 10 10 10 10 Average Capacity 9 | 7 10 10 10 9 Most Carried 10 | 4 6 6 5 10 Average Carried 5 | 1 3 3 2 7 Final Capacity 10 | 10 10 10 10 5 Final Carried 6 | 1 5 6 5 5 Class Distribution -------------------- 51% | Hacker-Sprinter 48% | Hacker-Mutant Dominant Class ---------------- Hacker-Mutant | -10/Materials Hacker-Sprinter | -9/Materials Hacker-Sprinter | -8/Materials Hacker-Sprinter | -8/Garrison Resources | -11 -10 -9 -8 -8 ----------- Run | Yrd Mat Mat Mat Gar Matter Collected 738 | 181 14 102 177 264 Remotely . | . . . . . Salvage Created 785 | . 172 126 119 368 Parts 62 | . 16 8 14 24 Haulers Intercepted 1 | . 1 . . . Recyclers Shooed 1 | . 1 . . . Parts Field Recycled . | . . . . . Retrieved Matter . | . . . . . Parts Self-Destructed . | . . . . . Prevented . | . . . . . Kills | -11 -10 -9 -8 -8 ------- Run | Yrd Mat Mat Mat Gar Combat Hostiles Destroyed 23 | . 5 2 5 11 Guns 14 | . 5 2 5 2 Cannons 9 | . . . . 9 Classes Destroyed 5 | . 4 1 . . Hauler 1 | . 1 . . . Watcher 2 | . 1 1 . . Swarmer 11 | . 4 . 4 3 Grunt 8 | . 1 1 . 6 Sentry 4 | . . 1 1 2 Best Kill Streak 4 | . 3 2 3 4 Combat Bots Only 4 | . 3 2 3 4 Max Kills in Single Turn 1 | . 1 1 1 1 Gunslinging . | . . . . . Exploded . | . . . . . Melee . | . . . . . Uniques/NPCs Destroyed . | . . . . . Combat | -11 -10 -9 -8 -8 -------- Run | Yrd Mat Mat Mat Gar Hostile Shots Fired 201 | . 21 11 20 149 Missed 64 | . 5 6 8 45 Hits 137 | . 16 5 12 104 Projectile 137 | . 16 5 12 104 Critical Strikes 4 | . . . . 4 Damage Taken 1168 | . 82 44 69 973 Core 586 | . 20 9 20 537 Absorbed by Shields 30 | . . . . 30 Ignored by Resistances 731 | . 62 28 48 593 Core Remaining (%) 96 | 100 92 97 . . Volleys Fired 95 | . 17 9 19 50 Largest 2 | . 2 2 2 2 Hottest 57 | . 40 40 40 57 Shots Fired 163 | . 34 18 38 73 Gun 129 | . 34 18 38 39 Cannon 34 | . . . . 34 Launcher . | . . . . . Special . | . . . . . Kinetic 163 | . 34 18 38 73 Thermal . | . . . . . Explosive . | . . . . . Electromagnetic . | . . . . . Robot Hit Streak 62 | . 8 14 29 62 Robot Miss Streak 2 | . 1 1 2 1 Penetration Max . | . . . . . Secondary Targets 3 | . 2 . . 1 Max Gunslinging Chain 1 | . 1 . . 1 Shots Hit Robots 126 | . 21 16 32 57 Core Hits 54 | . 11 8 10 25 Critical Kills . | . . . . . Critical Parts Destroyed . | . . . . . Critical Strikes 1 | . . . . 1 Blast 1 | . . . . 1 Melee Attacks . | . . . . . Impact . | . . . . . Slashing . | . . . . . Piercing . | . . . . . Sneak Attacks . | . . . . . Combat Hostiles . | . . . . . Follow-up Attacks . | . . . . . Damage Inflicted 1497 | . 165 129 258 945 Guns 810 | . 165 129 258 258 Cannons 608 | . . . . 608 Explosions . | . . . . . Melee . | . . . . . Ramming 79 | . . . . 79 Kinetic 1418 | . 165 129 258 866 Thermal . | . . . . . Explosive . | . . . . . Electromagnetic . | . . . . . Impact . | . . . . . Slashing . | . . . . . Piercing . | . . . . . Highest Corruption 3 | . . . . 3 Average Corruption 1 | . . . . 1 Corruption Purged . | . . . . . Corruption Blocked . | . . . . . Overload Shots . | . . . . . Overflow Damage 3 | . . . . 3 Projectiles 3 | . . . . 3 Explosions . | . . . . . Melee . | . . . . . Knockbacks 8 | . . . . 8 Impact . | . . . . . Kinetic 7 | . . . . 7 Secondary 1 | . . . . 1 Self-Inflicted Damage 35 | . . . . 35 Shots . | . . . . . Rammed 19 | . . . . 19 Targets Rammed 19 | . . . . 19 Kicked . | . . . . . Crushed . | . . . . . Highest Temperature 25 | . 12 14 5 25 Average Temperature 7 | . 7 8 2 8 Received Heat Transfer 627 | . 24 33 9 561 Siege Activations . | . . . . . Martial Activations . | . . . . . Shielding Activations . | . . . . . Robots Disrupted . | . . . . . Combat Hostiles . | . . . . . Robots Corrupted . | . . . . . Combat Hostiles . | . . . . . Parts Fried . | . . . . . Impact Corruptions . | . . . . . Robots Melted . | . . . . . Combat Hostiles . | . . . . . Parts Melted . | . . . . . Heat Transferred . | . . . . . Parts Sabotaged . | . . . . . Parts Stolen . | . . . . . Parts Stripped . | . . . . . Power Chain Reactions . | . . . . . Alert | -11 -10 -9 -8 -8 ------- Run | Yrd Mat Mat Mat Gar Maximum Alert Level 2 | . . . . 2 Low Security (%) 69 | 100 100 100 100 43 Level 1 16 | . . . . 30 Level 2 14 | . . . . 26 Level 3 . | . . . . . Level 4 . | . . . . . Level 5 . | . . . . . High Security . | . . . . . Max Security . | . . . . . Peak Influence 441 | . 75 45 88 441 Initial 44 | . . 3 13 44 Average 149 | . 35 9 47 253 Influence Increases 806 | . 134 68 137 467 Destroy 0b10 Robot/C 460 | . 100 40 100 220 Destroy 0b10 Robot/NC 15 | . 10 5 . . Destroy Leader 76 | . 24 22 20 10 Successful Hack 35 | . . 1 2 32 Anti-Garrison Action 100 | . . . . 100 Destroy Structure 15 | . . . . 15 Lose Combat Pursuer 105 | . . . 15 90 Influence Decreases 415 | . 120 37 92 166 Entered New Map 89 | . . 11 32 46 Time Decay 206 | . 120 26 60 . Lost Part 120 | . . . . 120 Squads Dispatched 4 | . 1 1 2 . Investigation 1 | . 1 . . . Extermination . | . . . . . Reinforcement 2 | . . 1 1 . Assault . | . . . . . Garrison 1 | . . . 1 . Intercept . | . . . . . Searches Triggered . | . . . . . Construction Impeded . | . . . . . Haulers Reinforced . | . . . . . Active Scanning Responses . | . . . . . Cargo Convoy Interrupts . | . . . . . Stealth | -11 -10 -9 -8 -8 --------- Run | Yrd Mat Mat Mat Gar Distress Signals 3 | . . 1 2 . Communications Jammed . | . . . . . Distress Signals . | . . . . . Times Spotted 49 | . 7 4 10 28 Peak Tracking Total 9 | . 3 2 5 9 Tactical Retreats 5 | . . . 1 4 Traps | -11 -10 -9 -8 -8 ------- Run | Yrd Mat Mat Mat Gar Traps Triggered 5 | . . 1 . 4 Indirectly . | . . . . . Trap Hack Attempts . | . . . . . Triggered . | . . . . . Disarmed . | . . . . . Reprogrammed . | . . . . . Reused . | . . . . . Traps Extracted . | . . . . . Installed . | . . . . . Triggered . | . . . . . Machines | -11 -10 -9 -8 -8 ---------- Run | Yrd Mat Mat Mat Gar Machines Disabled 2 | . . . . 2 Max in Single Turn 1 | . . . . 1 Garrison Relay 2 | . . . . 2 Machines Repaired . | . . . . . Machines Dismantled . | . . . . . Machines Sabotaged . | . . . . . Overloaded Fab Kills . | . . . . . Hacking | -11 -10 -9 -8 -8 --------- Run | Yrd Mat Mat Mat Gar Machines Accessed 10 | . 2 2 2 4 Terminals 9 | . 2 2 1 4 Fabricators . | . . . . . Repair Stations . | . . . . . Recycling Units . | . . . . . Scanalyzers . | . . . . . Garrison Access 1 | . . . 1 . Total Hacks 23 | . 7 7 3 6 Successful 15 | . 5 5 2 3 Failed 8 | . 2 2 1 3 Catastrophic . | . . . . . Database Lockouts . | . . . . . Manual . | . . . . . Terminals 21 | . 7 7 1 6 Fabricators . | . . . . . Repair Stations . | . . . . . Recycling Units . | . . . . . Scanalyzers . | . . . . . Garrison Access 2 | . . . 2 . Terminal Hacks 14 | . 5 5 1 3 Record 8 | . 4 4 . . Prototype ID Bank 2 | . 1 . 1 . Emergency Access Points 1 | . . . . 1 Maintenance Status 1 | . . 1 . . Patrol Navigation 1 | . . . . 1 Security Stations 1 | . . . . 1 Fabricator Hacks . | . . . . . Repair Station Hacks . | . . . . . Recycling Unit Hacks . | . . . . . Scanalyzer . | . . . . . Garrison Access Hacks 1 | . . . 1 . Unlock Access 1 | . . . 1 . Unauthorized Hacks . | . . . . . Terminals . | . . . . . Fabricators . | . . . . . Repair Stations . | . . . . . Recycling Units . | . . . . . Scanalyzers . | . . . . . Garrison Access . | . . . . . Data Cores Recovered . | . . . . . Used . | . . . . . Hacking Detections 6 | . 2 1 1 2 Full Trace Events 2 | . 2 . . . Feedback Events . | . . . . . Feedback Blocked . | . . . . . Robot Schematics Acquired . | . . . . . Robots Built . | . . . . . Authchips . | . . . . . Time . | . . . . . Total Robot Build Rating . | . . . . . Part Schematics Acquired . | . . . . . Parts Built . | . . . . . Authchips . | . . . . . Time . | . . . . . Total Part Build Rating . | . . . . . Parts Repaired . | . . . . . Time . | . . . . . Parts Recycled . | . . . . . Recycled Matter . | . . . . . Retrieved Matter . | . . . . . Retrieved Components . | . . . . . Parts Scanalyzed . | . . . . . Part Schematics Acquired . | . . . . . Parts Damaged . | . . . . . Bothacking | -11 -10 -9 -8 -8 ------------ Run | Yrd Mat Mat Mat Gar Used RIF Installer . | . . . . . Robots Hacked . | . . . . . Non-combat . | . . . . . Combat . | . . . . . Robot Hacks Applied . | . . . . . Relay Couplers Released 9 | . . . . 9 Machine Destruction 9 | . . . . 9 Fabnet Peak Effective % . | . . . . . Robots Rewired . | . . . . . Allies Hacked . | . . . . . Hacks Repelled . | . . . . . Allies | -11 -10 -9 -8 -8 -------- Run | Yrd Mat Mat Mat Gar Total Allies . | . . . . . Largest Group . | . . . . . Highest-Rated Group . | . . . . . Highest-Rated Ally . | . . . . . Total Orders . | . . . . . Ally Attacks . | . . . . . Total Damage . | . . . . . Kills . | . . . . . Allies Corrupted . | . . . . . Allies Melted . | . . . . . Intel | -11 -10 -9 -8 -8 ------- Run | Yrd Mat Mat Mat Gar Active Infowar (turns) 616 | . 9 95 88 424 Seismic 616 | . 9 95 88 424 Robot Analysis Total . | . . . . . Derelict Logs Recovered . | . . . . . Drone Launches . | . . . . . Drone Recoveries . | . . . . . Exploration | -11 -10 -9 -8 -8 ------------- Run | Yrd Mat Mat Mat Gar Turns Passed 906 | 53 180 95 88 490 Spaces Moved 1023 | 40 109 192 106 576 Core 45 | 16 . . . 29 Treads . | . . . . . Legs 133 | 24 109 . . . Wheels . | . . . . . Hover . | . . . . . Flight 845 | . . 192 106 547 Fastest Speed 26 | 50 120 29 26 26 Average Speed 45 | 97 120 30 26 36 Slowest Speed 190 | 190 120 31 26 110 Overloaded Moves . | . . . . . Propulsion Burnouts . | . . . . . Robots Hopped 6 | . . 1 1 4 Potential Cave-ins . | . . . . . Cave-ins Triggered . | . . . . . Exploration Rate (%) 29 | 4 33 20 20 71 Regions Visited 4 Branch Regions . Pre-discovered Areas . | . . . . . Known Exits Taken 4 | 1 1 1 1 . Unknown Exits Taken . | . . . . . Scrap Searched . | . . . . . Spaces Dug . | . . . . . Terrain Destroyed . | . . . . . Melee . | . . . . . Projectile . | . . . . . AOE . | . . . . . Terrain Rammed . | . . . . . Walls Destroyed . | . . . . . Machines Disabled . | . . . . . Actions | -11 -10 -9 -8 -8 --------- Run | Yrd Mat Mat Mat Gar Total 1325 | 54 131 213 134 793 Wait 64 | . . . . 64 Move 1007 | 39 108 189 104 567 Hop 6 | . . 1 1 4 Pick Up 31 | 8 5 6 3 9 Fast Attach . | . . . . . Attach 25 | 7 1 5 2 10 Detach 9 | . . . . 9 Swap 8 | . . 1 3 4 Drop 13 | . . 2 2 9 Fire 95 | . 17 9 19 50 Melee . | . . . . . Ram 19 | . . . . 19 Kick . | . . . . . Crush . | . . . . . Escape Stasis 48 | . . . . 48 Rewire . | . . . . . Trap . | . . . . . Miscellaneous . | . . . . . Route ------- -11/Scrapyard -10/Materials -9/Materials -8/Materials -8/Garrison (discovered 2 exits: *Mat x2) History --------- Turn | Location | Event 5 | -11/Scrapyard | Identified exit to Materials 5 | -11/Scrapyard | Discovered exit to Materials (range 15) 54 | -11/Scrapyard | Entered Materials 54 | -10/Materials | Evolved 1 slot: Utility x1 196 | -10/Materials | Identified exit to Materials 196 | -10/Materials | Discovered exit to Materials (range 11) 234 | -10/Materials | Entered another Materials area 234 | -9/Materials | Evolved 2 slots: Propulsion x2 325 | -9/Materials | Identified exit to Materials 325 | -9/Materials | Discovered exit to Materials (range 5) 329 | -9/Materials | Entered another Materials area 329 | -8/Materials | Evolved 2 slots: Power x1, Utility x1 383 | -8/Materials | Garrison activated, responded to threat 417 | -8/Materials | Identified exit to Garrison 417 | -8/Materials | Entered Garrison 421 | -8/Garrison | Triggered checkpoint 509 | -8/Garrison | Build established: Hacker-Sprinter 517 | -8/Garrison | Triggered checkpoint 537 | -8/Garrison | Garrison Relay disabled 628 | -8/Garrison | Garrison Relay disabled 681 | -8/Garrison | Triggered checkpoint 714 | -8/Garrison | Learned Materials security intel 787 | -8/Garrison | Triggered checkpoint 814 | -8/Garrison | Identified exit to Materials 814 | -8/Garrison | Discovered exit to Materials (range 10) 837 | -8/Garrison | Lost 3 parts (1p2n) 858 | -8/Garrison | Discovered exit to Materials (range 14) 864 | -8/Garrison | Attempted to access garrison exit controls, blocked by remote lockdown 877 | -8/Garrison | Triggered checkpoint 884 | -8/Garrison | Core integrity fell below 50% 903 | -8/Garrison | Core integrity fell below 20% 907 | -8/Garrison | Destroyed by G-47 Trooper with Particle Gun Last Messages --------------- Attempting to access garrison exit controls... Remote lockdown engaged. Beams of light sweep through the air. An alarm sounds. Cesium-ion Thruster destroyed. Slammed into G-47 Trooper. System Shield destroyed. Slammed into G-47 Trooper. Destabilizing: System interference. Seismic Detector temporarily disabled. Seismic Detector destroyed. Slammed into G-47 Trooper. Slammed into P-60 Hacker. P-60 Hacker resets G-47 Trooper, system corruption cleaned. Slammed into P-60 Hacker. Slammed into G-47 Trooper. Slammed into P-60 Hacker. Slammed into G-50 Soldier. Slammed into G-47 Trooper. Map ----- +----------------------------------------------------+ | ??# #???????????????##+##?????????????????????? | | ??# #?????????????????????????????????????????? | | ??# +?????????????????????????????????????????? | | ??# #?????????????????????????????????????????? | | ??# #?????????????????????????????????????????? | | "## #?????????????????????????????????????????? | | #?????????????????????????????????????????? | | +?????????????????????????????????????????? | | +?????????????????????????????????????????? | | ## #?????????????????????????????????????????? | | ## #?????????????????????????????????????????? | | "?????????????????????????????????????????? | | "?????????????????????????????????????????? | | "?????????????????????????????????????????? | | "?????????????????????????????????????????? | | ## #?????????????????????????????????????????? | | ## ##########????????????????????????????????? | | #????????????????????????????????? | | +????????????????????????????????? | | #???+?# #????????????????????????????????? | | "## ##?????# #????????????????????????????????? | | ??# #??????# #????????????????????????????????? | | ??# #??????# #????????##+##???????????????????? | | ??# #??????# #????????# #???????####????????? | | ??# +??????# ##########gpp######### ##???????? | | ??# #??????+ + g g%%@%%ggg ##??????? | | ??# #??????# %##### #########p##### #??????? | | ??# ########% #???# #???????# #"#?# # #??????? | | ??# %##### #???????# "#?# # #??????? | | ??# #???????# "#?#######??????? | | ??########### #######???????# "#??????????????? | | ????????????# #####?????????# #"#??????????????? | | ????????????# !#"T"#?????????#####??????????????? | | ???####?????#]!! "#????????????????????????????? | | ??"""""""???# !#####????????????????????????????? | | ?"""!!!!!!??# #????????????????????????????????? | | #"" ## ##############???????????????????? | | #"! + #???????????????????? | | #"! + #???????????????????? | | #"! ############## < #???????????????????? | | #"! ??????????????# #???????????????????? | | #"" ???????????????#####???????????????????? | | ?"""!!!?????????????????????????????????????????? | | ??""""??????????????????????????????????????????? | | ??###???????????????????????????????????????????? | | ????????????????????????????????????????????????? | | ????????????????????????????????????????????????? | | ????????????????????????????????????????????????? | | ????????????????????????????????????????????????? | | ????????????????????????????????????????????????? | +----------------------------------------------------+ Best States ------------- Heat Dissipation 41 Energy Generation 15 Energy Capacity 160 Matter Stores 300 Matter Capacity 300 Sight Range 16 Terrain Scan Density 10 Resistance: KI 35 Resistance: TH 35 Resistance: EX 35 Resistance: EM 35 Resistance: I 35 Resistance: S 35 Resistance: P 35 Evasion (%) 64 Targeting Accuracy 5 Offensive Hacking 20 Defensive Hacking 10 Item Schematics ----------------- None Robot Schematics ------------------ None Fabricated ------------ Nothing Repaired ---------- Nothing Alien Tech Used ----------------- None Achievements -------------- None Challenges ------------ None Game ------ Seed ActiveSapperClaymores Manual? 0 Play Time 00:15:30 Cumulative 29.3 hours Start 2025.06.04 @ 19:03:51 End 2025.06.04 @ 19:39:18 Sessions 1 Manual Loads 0 Difficulty Explorer Special Mode None Game No. 33 Rogue 0 Adventurer 0 Explorer 33 Win Type - Total 0 Types 0/0/0/0/0/0/0/0/0/0 Lore% 13 Gallery% 36 Achievement% 36 Wizard Run 0 Options --------- Layout 1 ASCII 0 Keyboard 0 Movement Mouse Keybinds 0 Fullscreen 1 Font 42/SmallcapsGlow Map View 52x41 Zoom Use 0% Tactical HUD 0 Map Filters NONE Filters NONE Steam 1 RUN: 16f4841c-0166-4888-b43d-6310b7824fb1